bitfinex/quotes_SOLUSD_20251128
["timestamp","ask_amount","ask_price","bid_price","bid_amount"]
[1764291142561,9.46994492,140.86,140.84,7.1002556]
[1764291143790,8.80994492,140.86,140.84,7.1002556]
[1764291144084,0.66,140.85,140.84,7.1002556]
[1764291144276,9.46994492,140.86,140.84,7.1002556]
[1764291144480,9.46994492,140.86,140.84,10.49242017]
[1764291146307,9.46994492,140.86,140.84,7.1002556]
[1764291146990,8.80994492,140.86,140.85,4.08216457]
[1764291147188,8.80994492,140.86,140.85,3.39216457]
[1764291147592,0.86376678,140.9,140.85,3.81]
[1764291147593,8.80994492,140.9,140.85,3.81]
[1764291147776,8.80994492,140.9,140.89,3.39216457]
[1764291147973,0.66,140.9,140.89,3.39216457]
[1764291148290,9.46994492,140.91,140.89,3.39216457]
[1764291148476,8.80994492,140.91,140.89,3.39216457]
[1764291148681,0.66,140.9,140.89,10.48990039]
[1764291150577,0.66,140.9,140.89,3.39216457]
[1764291152497,8.80994492,140.91,140.9,7.09723207]
[1764291152676,8.80994492,140.91,140.9,10.48939664]
[1764291153278,9.46994492,140.91,140.9,10.48939664]
[1764291153480,8.80994492,140.91,140.9,10.48939664]
[1764291159695,9.46994492,140.91,140.89,10.48972037]
[1764291159895,9.46994492,140.9,140.89,7.0975558]
[1764291161708,8.80994492,140.9,140.89,7.0975558]
[1764291161895,8.80994492,140.9,140.89,11.20972037]
[1764291162099,8.80994492,140.9,140.89,10.48972037]
[1764291162607,8.80994492,140.9,140.89,11.20972037]
[1764291165718,8.80994492,140.9,140.89,10.48972037]
[1764291166216,8.80994492,140.9,140.89,11.20972037]
[1764291167495,8.80994492,140.9,140.89,10.48972037]
[1764291170515,3.12,140.92,140.89,28.95405992]
[1764291170693,6.29457101,140.98,140.91,23.09319314]
[1764291170898,6.29457101,140.98,140.97,3.39216457]
[1764291170899,5.43080423,140.98,140.97,3.39216457]
[1764291171101,0.67,140.98,140.97,3.39216457]
[1764291171300,9.47994492,140.98,140.97,3.39216457]
[1764291171920,9.47994492,140.98,140.97,10.48587245]
[1764291173526,9.47994492,140.98,140.97,7.09370788]
[1764291173735,8.80994492,140.97,140.95,7.09464875]
[1764291173931,0.86376678,140.96,140.95,7.09464875]
[1764291174131,1.53376678,140.96,140.95,7.09464875]
[1764291175337,8.80994492,140.95,140.94,7.09521782]
[1764291175528,9.47994492,140.95,140.94,7.09521782]
[1764291175727,0.86376678,140.97,140.94,7.09521782]
[1764291175728,0.86376678,140.97,140.94,10.48738239]
[1764291176039,8.80994492,140.95,140.94,10.48738239]
[1764291176418,0.67,140.95,140.94,10.48738239]
[1764291176620,0.67,140.95,140.94,9.26202177]
[1764291177024,8.80994492,140.94,140.92,2.16680395]
[1764291177227,9.6737117,140.94,140.91,9.26353235]
[1764291177540,0.67,140.93,140.91,9.26353235]
[1764291180124,9.47994492,140.93,140.92,2.16680395]
[1764291180330,8.80994492,140.93,140.92,2.16680395]
[1764291180533,8.80994492,140.93,140.92,9.26302875]
[1764291183860,9.47994492,140.93,140.92,9.26302875]
[1764291184827,8.80994492,140.93,140.92,9.26302875]
[1764291191827,8.80994492,140.93,140.92,9.98302875]
[1764291192029,11.92994492,140.98,140.92,27.72359077]
[1764291192234,11.92994492,140.98,140.97,2.16680395]
[1764291192434,11.92994492,140.98,140.97,9.26051183]
[1764291193151,12.64994492,140.98,140.97,9.26051183]
[1764291194240,11.92994492,140.98,140.97,9.26051183]
[1764291195036,12.64994492,140.98,140.97,9.26051183]
[1764291199035,11.92994492,140.98,140.97,9.26051183]
[1764291199241,11.92994492,140.98,140.97,7.81370788]
[1764291199441,11.92994492,140.98,140.97,9.98051183]
[1764291199654,11.92994492,140.98,140.97,9.26051183]
[1764291200459,12.64994492,140.98,140.97,9.26051183]
[1764291200766,11.92994492,140.98,140.97,9.26051183]
[1764291201868,1e-08,140.99,140.97,9.98051183]
[1764291202068,1e-08,140.99,140.98,2.16680395]
[1764291202851,1e-08,140.99,140.98,9.26000865]
[1764291203370,9.52994493,140.99,140.98,7.0932047]
[1764291203571,9.52994493,140.99,140.98,9.26000865]
[1764291206392,9.52994493,140.99,140.97,9.26035875]
[1764291206556,3.84,140.98,140.97,7.0935548]
[1764291208150,3.12,140.98,140.97,9.98035875]
[1764291208368,3.12,140.98,140.97,9.26035875]
[1764291213677,3.12,140.98,140.97,9.98035875]
[1764291213891,8.80994492,140.98,140.97,9.98035875]
[1764291217472,9.52994492,140.98,140.97,7.0935548]
[1764291219190,8.80994492,140.97,140.96,24.82859618]
[1764291219485,9.52994492,140.97,140.96,24.82859618]
[1764291220092,9.52994492,140.97,140.96,26.99540013]
[1764291220275,9.52994492,140.97,140.96,7.09421112]
[1764291220682,9.52994492,140.97,140.96,9.26101507]
[1764291223095,9.52994492,140.97,140.96,7.09421112]
[1764291230816,8.80994492,140.98,140.96,9.26101507]
[1764291231013,8.80994492,140.98,140.97,2.16680395]
[1764291231193,9.45994492,140.98,140.97,2.16680395]
[1764291233280,9.45994492,140.98,140.97,9.26051183]
[1764291234286,9.45994492,140.98,140.97,7.09370788]
[1764291237392,9.45994492,140.98,140.96,7.09421112]
[1764291239611,0.65,140.97,140.96,7.09421112]
[1764291240310,8.80994493,140.99,140.96,7.09421112]
[1764291240480,1.51376678,140.98,140.96,7.09421112]
[1764291240680,8.80994492,140.97,140.95,7.09458711]
[1764291240901,12.57994492,140.97,140.94,7.09505629]
[1764291241202,0.65,140.96,140.94,7.09505629]
[1764291243508,8.80994492,140.95,140.93,7.09556073]
[1764291243886,9.45994492,140.94,140.93,7.09556073]
[1764291244088,9.45994492,140.94,140.92,7.09601328]
[1764291244288,8.80994492,140.92,140.91,7.09660797]
[1764291244494,9.45994492,140.92,140.91,7.09660797]
[1764291245192,8.80994492,140.92,140.91,10.48131934]
[1764291246711,8.80994492,140.92,140.91,11.18131934]
[1764291250814,3.12,140.93,140.91,11.18131934]
[1764291250993,8.80994492,140.93,140.92,4.05471137]
[1764291254418,8.80994492,140.93,140.92,11.15093617]
[1764291261300,8.80994492,140.95,140.92,28.89149819]
[1764291261503,9.52994492,140.95,140.92,28.89149819]
[1764291262399,9.52994492,140.95,140.93,3.38471137]
[1764291263129,0.72,140.94,140.92,24.83678682]
[1764291263316,0.72,140.94,140.92,28.22149819]
[1764291263734,9.52994492,140.95,140.92,28.90149819]
[1764291264025,9.52994492,140.95,140.92,25.51678682]
[1764291264223,0.72,140.94,140.92,21.12527339]
[1764291264426,0.72,140.94,140.92,17.74056202]
[1764291265918,0.72,140.94,140.92,21.12527339]
[1764291266612,0.72,140.94,140.92,28.22149819]
[1764291269520,0.72,140.94,140.92,24.83678682]
[1764291275331,8.80994492,140.93,140.91,7.0967284]
[1764291275830,8.80994492,140.93,140.91,10.48143977]
[1764291276143,9.52994492,140.92,140.91,7.0967284]
[1764291276345,12.64994492,140.92,140.91,7.0967284]
[1764291277653,8.80994492,140.91,140.89,3.38471137]
[1764291277884,9.52994492,140.91,140.88,21.1299144]
[1764291278186,8.80994492,140.89,140.88,28.22815403]
[1764291278903,8.80994492,140.89,140.88,24.84344266]
[1764291279197,8.80994492,140.89,140.88,28.22815403]
[1764291281164,8.80994492,140.91,140.88,28.93815403]
[1764291281379,8.80994492,140.91,140.9,3.38471137]
[1764291281589,9.45994492,140.91,140.9,3.38471137]
[1764291282291,8.80994492,140.91,140.9,4.09471137]
[1764291283019,8.80994492,140.91,140.9,11.19194344]
[1764291284885,8.80994492,140.91,140.9,10.48194344]
[1764291294110,9.45994492,140.91,140.9,10.48194344]
[1764291294312,9.45994492,140.91,140.9,7.09723207]
[1764291296511,9.45994492,140.91,140.88,3.38471137]
[1764291296727,8.80994492,140.89,140.87,3.38471137]
[1764291297329,9.45994492,140.88,140.87,10.48345489]
[1764291298714,9.45994492,140.88,140.87,2.16874685]
[1764291301213,9.45994492,140.88,140.87,9.26749037]
[1764291301612,8.80994492,140.88,140.87,9.26749037]
[1764291301809,8.80994492,140.88,140.87,9.97749037]
[1764291302411,8.80994492,140.88,140.87,9.26749037]
[1764291303223,8.80994492,140.88,140.87,9.97749037]
[1764291304602,0.65,140.91,140.87,27.72434917]
[1764291304798,9.45994492,140.91,140.9,2.16874685]
[1764291306023,9.45994492,140.91,140.9,9.26597892]
[1764291306221,8.80994492,140.91,140.9,9.26597892]
[1764291306423,8.80994492,140.91,140.9,9.97597892]
[1764291306815,8.80994492,140.93,140.9,27.71905911]
[1764291307028,8.80994492,140.93,140.92,2.16874685]
[1764291307325,9.45994492,140.93,140.92,2.16874685]
[1764291307906,9.45994492,140.93,140.92,9.26497165]
[1764291309926,9.45994492,140.93,140.91,7.09654055]
[1764291310113,0.65,140.92,140.91,7.09654055]
[1764291313908,0.65,140.92,140.91,9.2652874]
[1764291320239,0.7,140.92,140.91,9.2652874]
[1764291320916,9.50994492,140.92,140.91,9.2652874]
[1764291332342,8.80994492,140.92,140.91,9.2652874]
[1764291332547,8.80994492,140.92,140.91,9.9752874]
[1764291333144,8.80994492,140.92,140.91,9.2652874]
[1764291334243,8.80994492,140.92,140.91,9.9752874]
[1764291338351,8.80994492,140.92,140.91,9.2652874]
[1764291340156,8.80994492,140.92,140.91,9.9752874]
[1764291342726,3.12,140.95,140.91,29.88585527]
[1764291342932,9.49994492,140.97,140.94,18.47761085]
[1764291342933,8.80994492,140.97,140.94,18.47761085]
[1764291343146,8.80994492,140.97,140.96,2.16874685]
[1764291343531,8.80994492,140.98,140.96,2.16874685]
[1764291343856,9.49994492,140.98,140.97,2.16874685]
[1764291344256,9.49994492,140.98,140.97,9.26245473]
[1764291344636,9.49994492,140.98,140.97,7.09370788]
[1764291344843,9.49994492,140.98,140.97,9.26245473]
[1764291352440,10.3637117,140.98,140.96,2.16874685]
[1764291352659,0.69,140.97,140.95,26.99911056]
[1764291352848,8.80994492,140.96,140.95,26.99911056]
[1764291353362,0.69,140.96,140.95,26.99911056]
[1764291357165,9.6737117,140.98,140.95,26.99911056]
[1764291357371,8.80994492,140.96,140.95,24.83036371]
[1764291358449,8.80994492,140.96,140.95,26.99911056]
[1764291358771,8.80994492,140.96,140.95,28.93479177]
[1764291359861,8.80994492,140.97,140.95,28.93479177]
[1764291360180,8.80994492,140.97,140.96,3.38442806]
[1764291361378,8.80994492,140.97,140.96,10.47863918]
[1764291363271,8.80994492,140.97,140.96,28.93416698]
[1764291364093,8.80994492,140.98,140.96,28.93416698]
[1764291364377,8.80994492,140.98,140.97,3.38442806]
[1764291365085,8.80994492,140.98,140.97,10.47813594]
[1764291366471,1e-08,140.99,140.97,11.19813594]
[1764291366780,1e-08,140.99,140.98,4.10442806]
[1764291367184,1e-08,140.99,140.98,20.20757768]
[1764291368374,1e-08,140.99,140.98,26.71200574]
[1764291370188,1e-08,141.01,141.0,16.308864]
[1764291370483,1e-08,141.01,141.0,19.69329206]
[1764291370787,1e-08,141.01,141.0,29.16323698]
[1764291371665,1e-08,141.01,141.0,36.25543556]
[1764291372778,1e-08,141.01,141.0,39.37543556]
[1764291377282,1e-08,141.01,141.0,35.59543556]
[1764291377480,1e-08,141.01,141.0,36.27543556]
[1764291383408,0.72000001,141.01,141.0,35.59543556]
[1764291383703,1e-08,141.01,141.0,35.59543556]
[1764291384787,0.72000001,141.01,141.0,35.59543556]
[1764291387578,1e-08,141.01,141.0,35.59543556]
[1764291390699,1e-08,141.01,141.0,39.39543556]
[1764291391388,9.00994492,141.05,141.0,92.58692491]
[1764291391585,9.00994492,141.05,141.04,3.38442806]
[1764291391779,9.72994492,141.05,141.04,3.38442806]
[1764291392176,0.2,141.05,141.04,3.38442806]
[1764291392492,0.2,141.05,141.04,12.39437298]
[1764291392700,0.2,141.05,141.04,19.48456016]
[1764291400602,0.2,141.05,141.04,10.47461524]
[1764291401590,9.67994492,141.05,141.04,10.47461524]
[1764291405606,9.00994492,141.05,141.04,10.47461524]
[1764291407301,0.2,141.05,141.04,11.15461524]
[1764291408986,0.2,141.05,141.04,10.47461524]
[1764291412713,0.87,141.05,141.04,10.47461524]
[1764291420507,0.87,141.05,141.04,9.25328882]
[1764291421518,9.67994492,141.05,141.04,9.25328882]
[1764291422097,9.67994492,141.05,141.04,7.09018718]
[1764291423202,9.67994492,141.05,141.04,9.25328882]
[1764291426129,9.67994492,141.05,141.04,7.09018718]
[1764291426330,9.67994492,141.05,141.03,9.2535937]
[1764291426538,0.67,141.04,141.03,9.2535937]
[1764291434934,0.2,141.05,141.03,9.2535937]
[1764291435134,0.2,141.05,141.04,2.16310164]
[1764291435307,0.86,141.05,141.04,2.16310164]
[1764291436721,0.86,141.05,141.04,9.25328882]
[1764291443020,0.2,141.05,141.04,9.97328882]
[1764291443219,9.00994492,141.05,141.04,9.25328882]
[1764291443639,0.2,141.05,141.04,9.25328882]
[1764291443820,9.00994492,141.05,141.04,9.25328882]
[1764291451850,0.2,141.05,141.04,9.97328882]
[1764291455753,1e-08,141.05,141.04,9.97328882]
[1764291461640,1e-08,141.05,141.04,19.44323374]
[1764291470570,1e-08,141.05,141.04,18.72323374]
[1764291476564,0.66000001,141.05,141.04,16.5601321]
[1764291476753,9.46994493,141.05,141.04,9.25328882]
[1764291480659,9.46994493,141.05,141.04,10.47015743]
[1764291487159,8.80994493,141.05,141.04,10.47015743]
[1764291487572,8.80994493,141.05,141.04,19.94010236]
[1764291487759,9.46994493,141.05,141.04,19.94010236]
[1764291492771,9.46994493,141.05,141.04,10.47015743]
[1764291500085,13.68063102,141.05,141.03,7.0905546]
[1764291500392,0.67,141.04,141.03,7.0905546]
[1764291500571,3.79,141.04,141.03,7.0905546]
[1764291501492,8.80994492,141.03,141.02,24.81801352]
[1764291501787,9.47994492,141.03,141.02,24.81801352]
[1764291504072,9.47994492,141.03,141.02,7.09119273]
[1764291505474,9.47994492,141.03,141.01,7.09168576]
[1764291505675,9.47994492,141.02,141.01,7.09168576]
[1764291507188,9.47994492,141.02,141.01,3.37997025]
[1764291508493,9.47994492,141.02,141.01,10.47166587]
[1764291512386,8.80994492,141.01,140.99,7.09249482]
[1764291512585,12.59994492,141.01,140.99,7.09249482]
[1764291512784,9.47994492,141.0,140.99,10.47246507]
[1764291519617,8.80994492,141.0,140.99,10.47246507]
[1764291519993,9.47994492,141.0,140.99,10.47246507]
[1764291524796,8.80994492,140.99,140.98,24.82582276]
[1764291524996,8.80994492,140.99,140.98,28.20579301]
[1764291528019,0.67,140.99,140.98,28.20579301]
[1764291528708,0.67,140.99,140.97,7.09363765]
[1764291528916,11.92994492,140.98,140.97,7.09363765]
[1764291529419,12.59994492,140.98,140.97,10.4736079]
[1764291531429,8.80994492,140.98,140.97,10.4736079]
[1764291531724,8.80994492,140.98,140.97,11.1936079]
[1764291532497,8.80994492,140.98,140.97,10.4736079]
[1764291536603,9.47994492,140.98,140.97,10.4736079]
[1764291542520,0.86376679,141.05,141.0,16.308864]
[1764291542717,3.11,141.04,141.03,2.16411218]
[1764291543108,9.47994492,141.08,141.04,0.72]
[1764291543309,3.90490295,141.12,141.07,4.32822436]
[1764291543310,0.2,141.12,141.07,4.32822436]
[1764291543504,0.2,141.12,141.1,4.32822436]
[1764291543726,0.2,141.12,141.1,18.20809085]
[1764291544127,0.2,141.12,141.1,25.29526306]
[1764291544331,0.2,141.12,141.1,12.0894722]
[1764291544515,0.2,141.12,141.1,28.3983362]
[1764291544718,0.87,141.12,141.1,28.3983362]
[1764291545434,0.2,141.12,141.1,28.3983362]
[1764291545836,9.00994492,141.11,141.1,26.23422402]
[1764291546007,9.67994492,141.11,141.1,28.3983362]
[1764291554940,9.67994492,141.11,141.1,26.23422402]
[1764291555245,9.67994492,141.11,141.1,28.3983362]
[1764291555452,9.67994492,141.11,141.1,25.56014839]
[1764291561944,9.00994492,141.11,141.1,25.56014839]
[1764291562552,9.00994492,141.11,141.1,34.57009331]
[1764291565046,9.70994492,141.11,141.1,34.57009331]
[1764291566052,9.00994492,141.11,141.1,34.57009331]
[1764291566257,9.70994492,141.11,141.1,34.57009331]
[1764291570851,9.70994492,141.11,141.1,25.56014839]
[1764291574152,9.70994492,141.11,141.1,23.39603621]
[1764291574453,9.70994492,141.11,141.1,25.56014839]
[1764291591256,9.70994492,141.11,141.1,23.39603621]
[1764291591458,9.70994492,141.11,141.1,25.56014839]
[1764291600069,9.70994492,141.11,141.1,23.39603621]
[1764291600370,9.70994492,141.11,141.1,25.55733736]
[1764291602654,9.70994492,141.11,141.1,26.77315212]
[1764291603675,9.00994492,141.11,141.1,26.77315212]
[1764291605574,9.69994492,141.11,141.1,26.77315212]
[1764291605782,9.00994492,141.11,141.1,26.77315212]
[1764291610475,9.66994492,141.11,141.1,26.77315212]
[1764291618289,9.66994492,141.11,141.1,23.39603621]
[1764291618496,9.66994492,141.11,141.1,26.77315212]
[1764291621189,9.66994492,141.11,141.07,3.37711591]
[1764291621377,8.80994492,141.09,141.05,3.37711591]
[1764291621695,8.80994492,141.07,141.05,10.46677377]
[1764291621989,8.80994492,141.07,141.06,3.37711591]
[1764291622167,8.80994492,141.07,141.06,4.03711591]
[1764291622371,8.80994492,141.07,141.06,3.37711591]
[1764291623194,8.80994492,141.07,141.06,10.46629781]
[1764291627176,9.50994492,141.07,141.06,10.46629781]
[1764291628193,9.50994492,141.07,141.06,3.37711591]
[1764291628411,9.50994492,141.07,141.05,3.37711591]
[1764291628694,0.7,141.06,141.05,3.37711591]
[1764291629394,0.7,141.06,141.05,26.77566441]
[1764291629769,0.7,141.06,141.05,10.46680041]
[1764291630091,0.7,141.06,141.05,26.77566441]
[1764291630296,8.80994492,141.05,141.04,10.46720354]
[1764291631294,8.80994492,141.05,141.0,24.82269503]
[1764291631497,8.80994492,141.07,141.04,3.37711591]
[1764291631884,8.80994492,141.07,141.03,3.37711591]
[1764291632088,8.80994492,141.05,141.02,3.37711591]
[1764291632290,3.82,141.04,141.02,3.37711591]
[1764291632488,3.82,141.04,141.01,3.37711591]
[1764291632694,8.80994492,141.02,141.01,3.37711591]
[1764291632897,9.50994492,141.02,141.01,3.37711591]
[1764291633097,3.12,141.04,141.01,3.37711591]
[1764291633098,3.12,141.04,141.01,26.77767553]
[1764291633308,8.80994492,141.03,141.01,41.78979868]
[1764291633488,8.80994492,141.03,141.02,0.66]
[1764291634101,8.80994492,141.03,141.01,41.78979868]
[1764291634277,8.80994492,141.03,141.02,3.37711591]
[1764291635097,8.80994492,141.03,141.02,10.46830864]
[1764291636302,9.50994492,141.03,141.0,7.09219858]
[1764291636504,0.7,141.02,141.0,7.09219858]
[1764291636682,0.7,141.02,141.0,10.46931449]
[1764291637199,0.7,141.02,141.01,3.37711591]
[1764291638812,0.7,141.02,141.01,10.46881153]
[1764291639497,0.7,141.02,141.01,7.09169562]
[1764291640084,0.7,141.02,141.0,10.46911025]
[1764291644509,9.50994492,141.02,141.01,10.46881153]
[1764291644995,8.80994492,141.02,141.01,11.15881153]
[1764291645688,8.80994492,141.02,141.01,10.46881153]
[1764291646586,3.12,141.04,141.01,10.46881153]
[1764291646587,3.12,141.04,141.03,16.308864]
[1764291646792,8.80994492,141.04,141.03,19.68597991]
[1764291647111,8.80994492,141.04,141.03,20.37597991]
[1764291648018,8.80994492,141.04,141.03,27.46666983]
[1764291650322,3.82,141.07,141.03,45.19339464]
[1764291650501,12.62994492,141.07,141.06,3.37711591]
[1764291652621,12.62994492,141.07,141.06,10.46629781]
[1764291653613,9.50994492,141.07,141.06,10.46629781]
[1764291661622,8.80105186,141.07,141.06,10.46629781]
[1764291664527,8.80105186,141.07,141.06,9.25220786]
[1764291671531,8.10105186,141.07,141.06,9.25220786]
[1764291671726,8.10105186,141.07,141.06,9.94220786]
[1764291672546,0.2,141.11,141.06,27.66516263]
[1764291672707,0.2,141.11,141.1,2.16302596]
[1764291672902,0.2,141.11,141.1,2.87302596]
[1764291673826,0.2,141.11,141.1,9.96019817]
[1764291679807,0.2,141.13,141.1,12.12322413]
[1764291680010,0.2,141.14,141.13,16.308864]
[1764291680234,0.2,141.14,141.13,18.47188996]
[1764291680436,0.2,141.14,141.13,19.18188996]
[1764291680621,0.2,141.14,141.13,26.26755565]
[1764291681525,0.2,141.14,141.13,25.55755565]
[1764291687325,9.71994492,141.14,141.13,9.24869165]
[1764291687525,9.71994492,141.14,141.12,7.0860471]
[1764291687727,8.80994492,141.12,141.1,2.16302596]
[1764291687943,0.71,141.11,141.1,2.16302596]
[1764291689030,0.71,141.11,141.1,9.25019817]
[1764291696151,0.71,141.11,141.1,7.08717221]
[1764291696453,0.71,141.11,141.1,9.25019817]
[1764291698355,9.51994492,141.11,141.1,2.16302596]
[1764291698532,9.51994492,141.11,141.08,18.47188996]
[1764291698533,0.71,141.11,141.08,18.47188996]
[1764291698732,10.97297088,141.13,141.08,16.308864]
[1764291698733,0.71,141.1,141.08,16.308864]
[1764291699246,0.71,141.1,141.08,23.39698662]
[1764291700042,3.83,141.1,141.08,23.39698662]
[1764291700232,0.67,141.09,141.08,23.39698662]
[1764291701157,8.80994492,141.08,141.07,2.16302596]
[1764291701352,8.80994492,141.08,141.06,2.16302596]
[1764291701656,8.80994492,141.06,141.05,9.25271046]
[1764291702132,0.67,141.06,141.05,9.25271046]
[1764291705457,8.80994492,141.09,141.05,26.97692173]
[1764291705661,8.80994492,141.06,141.05,24.81389577]
[1764291706237,0.67,141.09,141.05,25.50389577]
[1764291706554,9.47994492,141.09,141.06,0.69]
[1764291706738,9.47994492,141.09,141.08,9.25120288]
[1764291708465,8.80994492,141.09,141.08,9.94120288]
[1764291708660,8.80994492,141.09,141.08,9.25120288]
[1764291709241,8.80994492,141.09,141.08,9.94120288]
[1764291709682,8.80994492,141.09,141.08,9.25120288]
[1764291709866,8.80994492,141.09,141.08,9.94120288]
[1764291711455,3.12,141.1,141.08,9.94120288]
[1764291711654,11.92994492,141.1,141.09,2.16302596]
[1764291711873,11.92994492,141.1,141.09,25.55956449]
[1764291713160,8.80994492,141.1,141.09,25.55956449]
[1764291716157,9.47994492,141.1,141.09,25.55956449]
[1764291718582,9.47994492,141.1,141.09,23.39653853]
[1764291719098,9.47994492,141.1,141.09,7.08767453]
[1764291720485,8.80994492,141.09,141.08,7.08817692]
[1764291720783,9.47994492,141.09,141.08,7.08817692]
[1764291722596,9.47994492,141.09,141.07,19.88358576]
[1764291722894,9.47994492,141.08,141.07,19.88358576]
[1764291723985,9.47994492,141.08,141.07,26.97226513]
[1764291724593,8.80994492,141.08,141.07,28.18821704]
[1764291726469,9.47994492,141.08,141.07,28.18821704]
[1764291727273,8.80994492,141.08,141.07,28.18821704]
[1764291730090,9.47994492,141.08,141.07,28.18821704]
[1764291730390,8.80994492,141.08,141.07,28.18821704]
[1764291732580,9.47994492,141.08,141.07,28.18821704]
[1764291734292,8.80994492,141.08,141.07,28.18821704]
[1764291736482,9.47994492,141.08,141.07,28.18821704]
[1764291736893,9.47994492,141.08,141.03,9.47994492]
[1764291737205,9.47994492,141.07,141.04,3.37897787]
[1764291737372,9.47994492,141.07,141.05,3.37897787]
[1764291737575,0.67,141.06,141.05,3.37897787]
[1764291738192,0.67,141.06,141.05,10.46866237]
[1764291744698,8.80994492,141.05,141.04,7.09018718]
[1764291744896,8.80994492,141.05,141.04,10.46916505]
[1764291745094,0.67,141.05,141.04,10.46916505]
[1764291745794,0.67,141.05,141.04,7.09018718]
[1764291746889,0.67,141.05,141.04,3.37897787]
[1764291747490,0.67,141.05,141.02,3.37897787]
[1764291748603,8.80994492,141.04,141.02,7.09069086]
[1764291749303,3.37897787,141.03,140.95,0.72]
[1764291749486,12.18892279,141.02,140.96,3.37897787]
[1764291749679,12.85892279,141.02,140.96,3.37897787]
[1764291749881,8.80994492,141.0,140.96,3.37897787]
[1764291750201,8.80994492,140.98,140.94,0.1]
[1764291750396,8.80994492,140.98,140.94,3.47897787]
[1764291750598,0.67,140.97,140.94,10.57401902]
[1764291751310,8.80994492,140.96,140.94,0.1]
[1764291751497,11.92994492,140.95,140.94,0.1]
[1764291751698,12.59994492,140.95,140.94,0.1]
[1764291753781,11.92994492,140.95,140.94,3.47897787]
[1764291754606,11.92994492,140.95,140.94,10.57419569]
[1764291755490,12.59994492,140.95,140.94,7.19521782]
[1764291755696,12.59994492,140.95,140.94,3.47897787]
[1764291755993,12.59994492,140.95,140.94,10.57419569]
[1764291756798,12.59994492,140.95,140.94,0.1]
[1764291757000,19.69465935,140.95,140.94,0.1]
[1764291757310,12.59994492,140.95,140.94,0.1]
[1764291758010,19.69465935,140.95,140.94,0.1]
[1764291760204,23.07363722,140.95,140.94,0.1]
[1764291762085,25.91707066,140.95,140.94,0.1]
[1764291762704,23.07363722,140.95,140.94,0.1]
[1764291763095,12.59994492,140.95,140.94,0.1]
[1764291766415,19.69465935,140.95,140.94,0.1]
[1764291767112,12.59994492,140.95,140.94,0.1]
[1764291768997,11.92994492,140.95,140.94,0.1]
[1764291769213,11.92994492,140.95,140.94,4.18897787]
[1764291769713,8.80994492,140.95,140.94,7.19521782]
[1764291769922,11.92994492,140.95,140.94,10.57419569]
[1764291771123,11.92994492,140.95,140.94,11.28419569]
[1764291771411,11.92994492,140.95,140.94,10.57419569]
[1764291771613,11.92994492,140.95,140.94,3.47897787]
[1764291771804,11.92994492,140.95,140.94,10.57419569]
[1764291780228,11.92994492,140.95,140.94,11.28419569]
[1764291781033,11.92994492,140.95,140.94,10.57419569]
[1764291781328,11.92994492,140.95,140.94,11.28419569]
[1764291781529,11.92994492,140.95,140.94,7.19521782]
[1764291781730,11.92994492,140.95,140.94,10.57419569]
[1764291781911,11.92994492,140.95,140.94,11.28419569]
[1764291784030,11.92994492,140.95,140.94,7.90521782]
[1764291784234,11.92994492,140.95,140.94,11.28419569]
[1764291785828,11.92994492,140.95,140.94,10.57419569]
[1764291786032,11.92994492,140.95,140.94,11.28419569]
[1764291786533,11.92994492,140.95,140.94,10.0715771]
[1764291788936,19.89441242,141.02,140.94,27.80962165]
[1764291788937,11.92994492,140.98,140.94,27.80962165]
[1764291789142,11.92994492,140.98,140.97,2.16635928]
[1764291789514,11.92994492,140.98,140.97,9.97006716]
[1764291790542,18.47522328,141.04,140.97,9.97006716]
[1764291790543,0.67,141.03,140.97,27.70433686]
[1764291790729,0.67,141.03,141.0,2.16635928]
[1764291790730,11.92994492,141.02,141.0,2.16635928]
[1764291790918,11.92994492,141.02,141.0,2.83635928]
[1764291791542,12.59994492,141.02,140.98,0.67]
[1764291791739,12.59994492,141.02,141.0,2.16635928]
[1764291792940,12.59994492,141.02,141.01,7.09169562]
[1764291793443,0.67,141.01,140.95,18.40678609]
[1764291793627,10.9763042,141.0,140.95,26.9978598]
[1764291793828,10.9763042,141.0,140.95,24.83150052]
[1764291794040,8.80994492,140.98,140.95,24.83150052]
[1764291794345,0.72,140.99,140.94,0.1]
[1764291794346,8.80994492,140.96,140.94,0.1]
[1764291794721,9.52994492,140.96,140.94,2.26635928]
[1764291794920,9.52994492,140.96,140.94,9.36154603]
[1764291795128,8.80994492,140.96,140.94,9.36154603]
[1764291795721,9.52994492,140.96,140.94,9.36154603]
[1764291795938,9.52994492,140.95,140.94,7.19518675]
[1764291796250,8.80994492,140.95,140.94,7.19518675]
[1764291796747,9.52994492,140.95,140.94,7.19518675]
[1764291797138,8.80994492,140.95,140.94,7.19518675]
[1764291797723,9.52994492,140.95,140.94,7.19518675]